bitfinex/quotes_BTCUSD_20250313
["timestamp","ask_amount","ask_price","bid_price","bid_amount"]
[1741882998499,0.01945394,81231.0,81225.0,0.012311]
[1741882998706,0.01945394,81231.0,81227.0,0.012311]
[1741882998821,0.01945394,81231.0,81228.0,0.012311]
[1741882999016,0.01945394,81231.0,81224.0,0.012311]
[1741882999017,0.01231,81229.0,81224.0,0.012311]
[1741882999222,0.00156168,81226.0,81224.0,0.012311]
[1741882999430,0.00156168,81226.0,81222.0,0.258547]
[1741882999839,0.00156168,81226.0,81223.0,0.012311]
[1741883000035,0.24779068,81226.0,81219.0,0.338356]
[1741883000239,0.012312,81221.0,81215.0,0.246257]
[1741883000469,0.258549,81223.0,81217.0,0.246253]
[1741883000865,0.258549,81223.0,81211.0,0.012313]
[1741883000866,0.012312,81220.0,81211.0,0.012313]
[1741883001069,0.01387268,81226.0,81220.0,0.246244]
[1741883001442,0.012311,81224.0,81217.0,0.258563]
[1741883001643,0.012311,81223.0,81218.0,0.012312]
[1741883001790,0.246232,81225.0,81219.0,0.012312]
[1741883002012,0.012311,81224.0,81219.0,0.012312]
[1741883002214,0.00156168,81226.0,81219.0,0.012312]
[1741883002419,0.00156168,81226.0,81225.0,0.25854]
[1741883003568,0.00156168,81226.0,81223.0,0.246234]
[1741883003769,0.00156168,81226.0,81225.0,0.246229]
[1741883004129,0.00156168,81226.0,81222.0,0.012311]
[1741883004448,0.00156168,81226.0,81225.0,0.25854]
[1741883004841,0.000169,81231.0,81228.0,0.258529]
[1741883005044,0.000169,81231.0,81230.0,0.01231]
[1741883005246,0.000169,81231.0,81228.0,0.258529]
[1741883005867,0.000169,81231.0,81225.0,1.76054]
[1741883006083,0.000169,81231.0,81230.0,0.01231]
[1741883006486,0.000169,81231.0,81229.0,0.01231]
[1741883006738,0.000169,81231.0,81226.0,0.012311]
[1741883006936,0.012479,81231.0,81225.0,0.002]
[1741883007293,0.000169,81231.0,81227.0,0.012311]
[1741883007463,0.000169,81231.0,81228.0,0.258531]
[1741883007848,0.012479,81231.0,81226.0,0.258536]
[1741883008020,0.000169,81231.0,81230.0,0.258524]
[1741883008425,0.000169,81231.0,81228.0,0.258531]
[1741883008658,0.246383,81231.0,81225.0,0.260538]
[1741883008885,0.000169,81231.0,81227.0,0.246221]
[1741883009086,0.000169,81231.0,81227.0,0.258532]
[1741883009201,0.000169,81231.0,81228.0,0.258529]
[1741883009436,0.000169,81231.0,81230.0,0.01231]
[1741883010080,0.000169,81231.0,81230.0,0.09361]
[1741883011620,0.000169,81231.0,81230.0,1.59861]
[1741883011854,0.000169,81231.0,81230.0,1.60261]
[1741883012104,0.000169,81231.0,81230.0,1.509]
[1741883012352,0.000169,81231.0,81230.0,0.009]
[1741883012353,0.24638,81231.0,81230.0,0.009]
[1741883012605,0.000169,81231.0,81230.0,0.02131]
[1741883013728,0.000169,81231.0,81230.0,0.02254094]
[1741883013971,0.000169,81231.0,81230.0,0.14224193]
[1741883015922,0.000169,81243.0,81230.0,0.14224193]
[1741883015923,0.000169,81243.0,81242.0,0.012308]
[1741883016142,0.000169,81243.0,81242.0,0.25971668]
[1741883016358,0.000169,81243.0,81242.0,0.258486]
[1741883016792,0.000169,81243.0,81242.0,0.37818699]
[1741883017705,0.000169,81243.0,81242.0,0.258486]
[1741883018690,0.000169,81243.0,81242.0,0.262486]
[1741883018899,0.000169,81243.0,81242.0,0.266486]
[1741883019537,0.000169,81243.0,81242.0,0.40072784]
[1741883019710,0.000169,81243.0,81242.0,1.56236784]
[1741883020906,0.000169,81243.0,81242.0,1.55436784]
[1741883021109,0.000169,81243.0,81242.0,1.56036784]
[1741883021669,0.000169,81243.0,81242.0,3.06036784]
[1741883021871,0.000169,81243.0,81242.0,3.04582699]
[1741883022229,0.000169,81243.0,81242.0,3.05182699]
[1741883022681,0.000169,81243.0,81242.0,2.706646]
[1741883023330,0.000169,81243.0,81242.0,2.82634699]
[1741883023764,0.000169,81243.0,81242.0,2.706646]
[1741883024420,0.000169,81243.0,81242.0,2.700646]
[1741883024652,0.000169,81243.0,81242.0,2.706646]
[1741883025097,0.000169,81243.0,81242.0,2.82634699]
[1741883025334,0.000169,81243.0,81242.0,3.12034699]
[1741883025582,0.000169,81243.0,81242.0,3.12534699]
[1741883026026,0.012303,81276.0,81270.0,0.012304]
[1741883026286,0.012303,81276.0,81264.0,0.258414]
[1741883026287,0.012304,81272.0,81264.0,0.258414]
[1741883026478,0.246101,81268.0,81262.0,0.246115]
[1741883026686,0.258405,81268.0,81262.0,0.246115]
[1741883027187,0.012304,81268.0,81262.0,0.25842]
[1741883027608,0.2584,81269.0,81263.0,0.012305]
[1741883027949,0.2584,81269.0,81264.0,0.246109]
[1741883028372,0.258415,81265.0,81262.0,0.001]
[1741883028586,0.258415,81265.0,81259.0,0.258431]
[1741883028807,0.258409,81267.0,81262.0,0.246117]
[1741883029011,0.246107,81266.0,81263.0,0.001]
[1741883029246,0.258412,81266.0,81264.0,0.001]
[1741883029371,0.012304,81270.0,81264.0,0.247109]
[1741883029564,0.0001686,81273.0,81265.0,0.012305]
[1741883029779,0.0001686,81273.0,81272.0,0.012304]
[1741883029970,0.0001686,81273.0,81270.0,0.012304]
[1741883030217,0.012304,81272.0,81264.0,0.24611]
[1741883030452,0.258391,81272.0,81265.0,0.246105]
[1741883030649,0.012304,81271.0,81266.0,0.012305]
[1741883030850,0.246093,81270.0,81266.0,0.012305]
[1741883031106,0.246108,81265.0,81259.0,0.26043]
[1741883031301,0.012305,81264.0,81260.0,0.246121]
[1741883031621,0.246098,81269.0,81262.0,0.012305]
[1741883031821,0.012304,81269.0,81264.0,0.001]
[1741883032037,0.012304,81269.0,81263.0,0.012305]
[1741883032221,0.258396,81271.0,81265.0,0.246108]
[1741883032431,0.0001686,81273.0,81271.0,0.258392]
[1741883032729,0.0001686,81273.0,81272.0,0.012304]
[1741883034199,0.0001686,81273.0,81272.0,0.22536403]
[1741883034347,0.0001686,81273.0,81272.0,0.37984403]
[1741883034701,0.0001686,81273.0,81272.0,1.87861371]
[1741883035213,0.0001686,81273.0,81272.0,1.87130971]
[1741883035367,0.0001686,81273.0,81272.0,1.88361371]
[1741883035710,0.0001686,81273.0,81272.0,0.166784]
[1741883035869,0.0001686,81273.0,81272.0,0.170784]
[1741883036072,0.0001686,81273.0,81272.0,0.175784]
[1741883038259,0.0001686,81273.0,81272.0,0.166784]
[1741883038417,0.0001686,81273.0,81272.0,0.174784]
[1741883039008,0.0001686,81273.0,81272.0,0.29448499]
[1741883040391,0.0001686,81273.0,81272.0,0.31906754]
[1741883040593,0.0001686,81273.0,81272.0,0.31506754]
[1741883040920,0.0001686,81273.0,81272.0,0.03458255]
[1741883041182,0.0001686,81273.0,81272.0,0.006]
[1741883041372,0.0001686,81273.0,81272.0,0.258391]
[1741883041577,0.0001686,81273.0,81271.0,0.246088]
[1741883041772,0.0001686,81273.0,81272.0,0.018304]
[1741883041974,0.2585566,81273.0,81272.0,0.006]
[1741883042192,0.2585566,81273.0,81272.0,0.002]
[1741883042193,0.0001686,81273.0,81272.0,0.002]
[1741883042383,0.0001686,81273.0,81272.0,0.014304]
[1741883042801,0.0124726,81273.0,81272.0,0.002]
[1741883043003,0.2585566,81273.0,81272.0,0.002]
[1741883043207,0.0001686,81273.0,81272.0,0.014304]
[1741883043541,0.0001686,81273.0,81272.0,0.002]
[1741883043741,0.0001686,81273.0,81272.0,0.014304]
[1741883044415,0.0001686,81273.0,81272.0,0.012304]
[1741883044627,0.0001686,81273.0,81272.0,0.018304]
[1741883044771,0.0001686,81273.0,81272.0,1.63623526]
[1741883044972,0.0001686,81273.0,81272.0,1.63500499]
[1741883045172,0.0001686,81273.0,81272.0,1.63700499]
[1741883045600,0.0001686,81273.0,81272.0,1.64200499]
[1741883046566,0.0001686,81273.0,81272.0,1.66502457]
[1741883046947,0.0001686,81273.0,81272.0,1.66002457]
[1741883047301,0.0001686,81273.0,81272.0,1.66602457]
[1741883047721,0.0001686,81273.0,81272.0,1.66102457]
[1741883047989,0.0001686,81273.0,81272.0,1.66702457]
[1741883048343,0.0001686,81273.0,81272.0,0.04732358]
[1741883048520,0.0001686,81273.0,81272.0,0.03501958]
[1741883048770,0.0001686,81273.0,81272.0,0.04732358]
[1741883050017,0.0001686,81273.0,81272.0,0.024304]
[1741883050208,0.0001686,81273.0,81272.0,0.018304]
[1741883050413,0.0001686,81273.0,81272.0,0.021304]
[1741883050755,0.0001686,81273.0,81272.0,0.14223536]
[1741883050892,0.0001686,81273.0,81272.0,0.15677621]
[1741883051106,6e-07,81273.0,81272.0,0.52787621]
[1741883051323,6e-07,81273.0,81272.0,0.57474584]
[1741883051532,6e-07,81273.0,81272.0,0.58174584]
[1741883051757,6e-07,81273.0,81272.0,2.08174584]
[1741883051963,0.000169,81311.0,81294.0,0.638421]
[1741883052216,0.000169,81311.0,81294.0,0.77266284]
[1741883052346,0.000169,81311.0,81294.0,0.91252199]
[1741883052555,0.012299,81306.0,81294.0,0.712721]
[1741883052759,0.012299,81306.0,81294.0,0.43712532]
[1741883052962,0.012299,81305.0,81294.0,0.412721]
[1741883053163,0.2461788,81298.0,81292.0,0.1544]
[1741883053379,0.258323,81294.0,81292.0,0.1544]
[1741883053583,0.012301,81294.0,81292.0,0.1544]
[1741883053784,0.0001685,81295.0,81291.0,0.258329]
[1741883053956,0.0001685,81295.0,81293.0,0.246023]
[1741883054162,0.0001685,81295.0,81289.0,0.258335]
[1741883054368,0.0124685,81295.0,81294.0,0.004]
[1741883054607,0.0001685,81295.0,81294.0,0.004]
[1741883054767,0.0001685,81295.0,81292.0,0.003]
[1741883054988,0.0001685,81295.0,81292.0,0.258324]
[1741883055190,0.0001685,81295.0,81294.0,0.012301]
[1741883055437,0.0124685,81295.0,81290.0,0.246032]
[1741883055580,0.012301,81293.0,81287.0,0.258343]
[1741883055780,0.2584875,81295.0,81289.0,0.003]
[1741883056195,0.258324,81293.0,81292.0,0.003]
[1741883057292,0.012301,81293.0,81292.0,0.003]
[1741883057435,0.258333,81290.0,81289.0,0.003]
[1741883057638,0.67803399,81290.0,81289.0,0.003]
[1741883058082,0.67803399,81290.0,81287.0,0.003]
[1741883058083,0.258339,81288.0,81287.0,0.003]
[1741883058284,0.258388,81273.0,81272.0,0.02334395]
[1741883058617,0.258388,81273.0,81272.0,0.0003378]
[1741883059202,0.45518899,81273.0,81272.0,0.0003378]
[1741883060924,0.37808899,81273.0,81272.0,0.0023378]
[1741883061125,0.258371,81279.0,81272.0,0.0043378]
[1741883061363,0.11970099,81278.0,81272.0,0.0003378]
[1741883061516,0.246072,81277.0,81272.0,0.0023378]
[1741883061723,0.25838,81276.0,81272.0,0.0043378]
[1741883061921,0.012304,81273.0,81272.0,0.0023378]
[1741883062195,0.13200499,81273.0,81272.0,0.0023378]
[1741883062877,0.13322917,81273.0,81272.0,0.0013378]
[1741883063086,0.13200499,81273.0,81272.0,0.0013378]
[1741883063303,0.13322917,81273.0,81272.0,0.0013378]
[1741883063486,0.13200499,81273.0,81272.0,0.0013378]
[1741883064322,0.13200499,81273.0,81272.0,0.0003378]
[1741883069134,0.13322917,81273.0,81272.0,0.0003378]
[1741883069354,0.43322917,81273.0,81272.0,0.0003378]
[1741883069533,0.43200499,81273.0,81272.0,0.0003378]
[1741883069777,0.55820499,81273.0,81272.0,0.0003378]
[1741883070949,0.56020499,81273.0,81272.0,0.0003378]
[1741883071535,0.002,81273.0,81272.0,0.0126418]
[1741883072454,0.002,81273.0,81272.0,1.5126418]
[1741883073037,0.002,81273.0,81272.0,0.0003378]
[1741883073242,0.014304,81273.0,81272.0,0.0003378]
[1741883073442,0.002,81273.0,81272.0,0.0003378]
[1741883073645,0.014304,81273.0,81272.0,0.0003378]
[1741883074117,0.012304,81273.0,81272.0,0.0003378]
[1741883074317,0.13200499,81273.0,81272.0,0.0003378]
[1741883074706,0.43200499,81273.0,81272.0,0.0063378]
[1741883075290,0.43200499,81273.0,81272.0,0.0033378]
[1741883075700,0.43200499,81273.0,81272.0,0.0013378]
[1741883075857,0.58636499,81273.0,81272.0,8e-07]
[1741883076056,0.73730584,81273.0,81272.0,8e-07]
[1741883076473,0.73730584,81273.0,81242.0,0.000338]
[1741883076474,0.258483,81243.0,81242.0,0.000338]
[1741883076677,0.37818399,81243.0,81242.0,0.000338]
[1741883077485,0.39078838,81243.0,81242.0,0.000338]
[1741883077685,0.14461338,81243.0,81242.0,0.003338]
[1741883077895,0.39078838,81243.0,81242.0,0.003338]
[1741883078092,0.39078838,81243.0,81242.0,0.000338]
[1741883078354,0.39078838,81243.0,81242.0,0.001338]
[1741883078528,0.246171,81245.0,81242.0,0.002338]
[1741883078705,0.258479,81245.0,81242.0,0.002338]
[1741883079310,0.258482,81244.0,81242.0,0.002338]
[1741883079521,0.012308,81243.0,81242.0,0.002338]
[1741883080116,0.012308,81244.0,81242.0,0.002338]
[1741883080376,0.258482,81244.0,81242.0,0.002338]
[1741883080684,0.27083601,81245.0,81242.0,0.002338]
[1741883080956,0.27083601,81245.0,81242.0,0.000338]
[1741883081160,0.01235701,81245.0,81243.0,0.246175]
[1741883081315,0.01235701,81245.0,81244.0,0.012308]
[1741883081522,0.246166,81246.0,81242.0,0.002338]
[1741883081726,0.258479,81245.0,81242.0,0.002338]
[1741883081931,0.258479,81245.0,81242.0,0.001338]
[1741883081932,0.012308,81243.0,81242.0,0.001338]
[1741883082331,0.25839134,81246.0,81243.0,0.001]
[1741883082535,0.012308,81244.0,81243.0,0.001]
[1741883082751,0.258483,81243.0,81242.0,0.001338]
[1741883082950,0.37818399,81243.0,81242.0,0.001338]
[1741883083513,0.012308,81244.0,81242.0,0.001338]
[1741883083647,0.012308,81243.0,81242.0,0.000338]
[1741883084049,0.246175,81243.0,81242.0,0.001338]
[1741883084389,0.258483,81243.0,81242.0,0.001338]
[1741883084686,0.258483,81243.0,81242.0,0.000338]
[1741883084915,0.258483,81243.0,81242.0,0.001338]
[1741883085633,0.258483,81243.0,81242.0,0.002338]
[1741883086253,0.37818399,81243.0,81242.0,0.002338]
[1741883086522,0.67818399,81243.0,81242.0,0.002338]
[1741883087346,0.67818399,81243.0,81242.0,0.001338]
[1741883087732,0.67918399,81243.0,81242.0,0.000338]
[1741883088109,0.67918399,81243.0,81242.0,0.001338]
[1741883088660,0.67918399,81243.0,81242.0,0.000338]
[1741883089016,0.67918399,81243.0,81242.0,1e-06]
[1741883089017,0.76148399,81243.0,81242.0,1e-06]
[1741883089996,0.78002484,81243.0,81242.0,1e-06]
[1741883090617,0.78302484,81243.0,81242.0,1e-06]
[1741883090827,0.78202484,81243.0,81242.0,1e-06]
[1741883091181,0.76348399,81243.0,81242.0,1e-06]
[1741883091944,0.76365309,81243.0,81242.0,1e-06]
[1741883100463,0.0041691,81243.0,81242.0,0.258487]
[1741883100685,0.2626521,81243.0,81242.0,1e-06]
[1741883100889,0.0041691,81243.0,81242.0,1e-06]
[1741883101096,0.13617809,81243.0,81242.0,1e-06]
[1741883101316,0.13740227,81243.0,81242.0,1e-06]
[1741883101519,0.012311,81226.0,81216.0,0.012312]
[1741883101776,0.3,81240.0,81230.0,0.246214]
[1741883101981,0.3,81240.0,81209.0,0.0753]
[1741883101982,0.312309,81236.0,81225.0,0.012311]
[1741883102183,0.01231,81232.0,81222.0,0.258547]
[1741883102404,0.01231,81234.0,81219.0,0.012312]
[1741883102607,0.42636426,81232.0,81223.0,0.258543]
[1741883102756,0.246208,81233.0,81224.0,0.258543]
[1741883102940,0.13201099,81234.0,81224.0,0.258543]
[1741883103140,0.246213,81231.0,81223.0,0.012311]
[1741883103344,0.258515,81233.0,81224.0,0.012311]
[1741883103582,0.13201099,81234.0,81225.0,0.25854]
[1741883103731,0.11970099,81234.0,81228.0,0.012311]
[1741883104126,0.19246526,81241.0,81228.0,0.012311]
[1741883104127,0.166628,81245.0,81236.0,0.012309]
[1741883104422,0.11970099,81240.0,81235.0,0.246199]
[1741883105004,0.13200999,81240.0,81231.0,0.258518]
[1741883105207,0.246217,81229.0,81223.0,0.0812]
[1741883105409,0.012311,81227.0,81219.0,0.246246]
[1741883105616,0.012311,81227.0,81211.0,0.0791]
[1741883105617,0.012311,81222.0,81211.0,0.0791]
[1741883105815,0.012311,81224.0,81214.0,0.258575]
[1741883106026,0.258554,81221.0,81213.0,0.246264]
[1741883106236,0.258565,81217.0,81211.0,0.0791]
[1741883106460,0.012312,81216.0,81211.0,0.0791]
[1741883107296,0.012312,81216.0,81215.0,0.005338]
[1741883107505,0.43323717,81216.0,81215.0,0.005338]
[1741883107710,0.43201299,81216.0,81215.0,0.000338]
[1741883107919,0.43201299,81216.0,81215.0,0.005338]
[1741883108126,0.67826899,81216.0,81215.0,0.009338]
[1741883108336,0.67826899,81216.0,81215.0,0.005338]
[1741883108696,0.68126899,81216.0,81215.0,0.005338]
[1741883109125,0.003,81216.0,81215.0,0.000338]
[1741883109322,0.13501299,81216.0,81215.0,0.000338]
[1741883111906,0.26601299,81216.0,81215.0,0.000338]
[1741883112377,0.26401299,81216.0,81215.0,0.000338]
[1741883112596,0.73136899,81216.0,81215.0,0.000338]
[1741883113199,0.68226899,81216.0,81215.0,0.000338]
[1741883114118,0.67826899,81216.0,81215.0,0.000338]
[1741883114357,0.67826899,81216.0,81203.0,0.000337]
[1741883114358,0.637407,81204.0,81203.0,0.000337]
[1741883114549,0.637407,81204.0,81190.0,0.0003378]
[1741883114550,0.558645,81192.0,81190.0,0.0003378]
[1741883114658,0.67834599,81192.0,81190.0,0.0003378]
[1741883115060,0.69059082,81192.0,81190.0,0.0003378]
[1741883117233,0.69459082,81192.0,81190.0,0.0003378]
[1741883118744,0.13594582,81192.0,81190.0,0.0003378]
[1741883118946,0.004,81192.0,81191.0,0.258985]
[1741883119925,0.004,81192.0,81191.0,0.335085]
[1741883120127,0.002,81192.0,81191.0,0.335085]
[1741883120329,0.01221403,81207.0,81206.0,0.258601]
[1741883120467,0.01221403,81207.0,81206.0,0.011314]
[1741883120677,0.258584,81212.0,81206.0,0.011314]
[1741883120885,0.11970099,81211.0,81206.0,0.011314]
[1741883121801,0.11970099,81211.0,81208.0,0.258595]
[1741883122009,0.13219603,81211.0,81210.0,0.012313]
[1741883122191,0.13219603,81211.0,81208.0,0.258595]
[1741883122387,0.13419603,81211.0,81208.0,0.258595]
[1741883122610,0.13419603,81211.0,81210.0,0.012313]
[1741883124899,0.0001691,81240.0,81236.0,0.258505]
[1741883125109,0.0001691,81240.0,81237.0,0.012309]
[1741883125321,0.258496,81239.0,81233.0,0.0761]
[1741883125525,0.258496,81239.0,81234.0,0.01231]
[1741883125734,0.012309,81237.0,81233.0,0.0761]
[1741883126148,0.012309,81237.0,81229.0,0.246217]
[1741883126398,0.012309,81237.0,81228.0,0.012311]
[1741883126399,0.01231,81234.0,81228.0,0.012311]
[1741883126598,0.012309,81237.0,81229.0,0.01231]
[1741883126802,0.258522,81231.0,81226.0,0.091511]
[1741883127013,0.246205,81233.0,81227.0,0.258534]
[1741883127014,0.258515,81233.0,81227.0,0.258534]
[1741883127214,0.246215,81230.0,81226.0,0.0792]
[1741883127396,0.012309,81238.0,81232.0,0.246208]
[1741883127596,0.11970099,81238.0,81232.0,0.246208]
[1741883127802,0.0001691,81243.0,81239.0,0.012309]
[1741883128014,0.0001691,81243.0,81239.0,0.258496]
[1741883129414,0.0001691,81243.0,81237.0,0.258502]
[1741883129415,0.0124771,81243.0,81237.0,0.258502]
[1741883129592,0.258492,81241.0,81232.0,0.16659]
[1741883129794,0.012309,81238.0,81228.0,0.012311]
[1741883130081,0.246187,81239.0,81234.0,0.246202]
[1741883130286,0.01259997,81243.0,81238.0,0.246189]
[1741883130460,0.01259997,81243.0,81239.0,0.001]
[1741883130633,0.0001691,81243.0,81239.0,0.012309]
[1741883131602,0.0001691,81243.0,81239.0,0.014309]
[1741883132438,0.0001691,81243.0,81239.0,0.002]
[1741883132665,0.2586621,81240.0,81239.0,0.002]
[1741883132895,0.26878634,81240.0,81239.0,0.002]
[1741883133159,0.01029334,81240.0,81239.0,0.001]
[1741883133408,0.01029334,81240.0,81239.0,0.002]
[1741883133605,0.01029334,81240.0,81239.0,0.001]
[1741883133754,0.01029334,81240.0,81236.0,0.258504]
[1741883133957,0.01029334,81240.0,81239.0,0.003]
[1741883134281,0.01029334,81240.0,81237.0,0.012309]
[1741883134483,0.01029334,81240.0,81239.0,0.001]
[1741883134907,0.01029334,81240.0,81239.0,0.259496]
[1741883135202,0.0001691,81240.0,81239.0,0.259496]
[1741883136367,0.0001691,81240.0,81239.0,0.001]
[1741883136572,0.0001691,81240.0,81236.0,0.258503]
[1741883136775,0.01013521,81239.0,81237.0,0.258499]
[1741883137202,0.01013521,81239.0,81236.0,0.258503]
[1741883138271,0.012309,81236.0,81230.0,0.01231]
[1741883138547,0.01013521,81239.0,81238.0,0.012309]
[1741883138707,0.0001691,81240.0,81239.0,0.012309]
[1741883139084,0.0001691,81240.0,81237.0,0.012309]
[1741883139292,0.0099109,81240.0,81239.0,0.012309]
[1741883139499,0.0001691,81240.0,81239.0,0.012309]
[1741883139861,0.0001691,81240.0,81237.0,0.012309]
[1741883140381,0.0001691,81240.0,81239.0,0.012309]
[1741883140609,0.0001691,81240.0,81237.0,0.258499]
[1741883140809,0.00991026,81240.0,81239.0,0.2638342]
[1741883141010,0.0001691,81240.0,81239.0,0.2638342]
[1741883141209,0.0001691,81240.0,81239.0,0.2618342]
[1741883141472,0.0001691,81240.0,81239.0,0.2588342]
[1741883142255,0.0001691,81240.0,81239.0,0.0146472]
[1741883142647,4.5e-07,81243.0,81242.0,0.258486]
[1741883142846,4.5e-07,81243.0,81242.0,0.45348699]
[1741883143047,0.012304,81274.0,81264.0,0.012305]
[1741883143253,0.012306,81259.0,81251.0,0.1542]
[1741883143422,0.012307,81252.0,81251.0,0.1542]
[1741883143621,0.012307,81250.0,81245.0,0.78164]
[1741883143822,0.26658452,81249.0,81245.0,0.78164]
[1741883144023,0.258473,81246.0,81245.0,0.78164]
[1741883144249,0.258469,81248.0,81245.0,0.78164]
[1741883144574,0.012309,81241.0,81239.0,0.0033382]
[1741883144771,0.012308,81245.0,81239.0,0.0003382]
[1741883145007,0.01203939,81244.0,81240.0,0.012309]
[1741883145208,0.00507761,81243.0,81240.0,0.258491]
[1741883145496,0.012308,81245.0,81239.0,0.2588322]
[1741883145706,0.00508049,81242.0,81239.0,0.2588322]
[1741883145855,0.01204983,81245.0,81242.0,0.012308]
[1741883146036,0.012307,81254.0,81242.0,0.258483]
[1741883146239,0.11970099,81250.0,81246.0,0.012308]
[1741883146649,0.13200799,81250.0,81245.0,0.258474]
[1741883146884,0.13200799,81250.0,81245.0,0.246166]
[1741883147232,0.258473,81247.0,81242.0,0.260484]
[1741883147466,0.258469,81248.0,81243.0,0.012308]
[1741883147616,0.13229384,81250.0,81243.0,0.012308]
[1741883147801,0.246172,81244.0,81239.0,0.0003382]
[1741883148002,0.00304269,81243.0,81239.0,0.0003382]
[1741883148350,0.246178,81242.0,81239.0,0.0023382]
[1741883148581,0.258493,81240.0,81239.0,0.0003382]
[1741883148764,0.37819399,81240.0,81239.0,0.0003382]
[1741883149084,0.37819399,81240.0,81239.0,0.0023382]
[1741883149085,0.12272538,81240.0,81239.0,0.0023382]
[1741883149201,0.38121838,81240.0,81239.0,0.0003382]
[1741883150392,0.3863249,81240.0,81239.0,0.0003382]
[1741883150818,0.3863249,81240.0,81239.0,0.0033382]
[1741883151161,0.3863249,81240.0,81239.0,0.0073382]
[1741883151991,0.6863249,81240.0,81239.0,0.0043382]
[1741883152197,0.74876575,81240.0,81239.0,2e-07]
[1741883152515,0.012313,81212.0,81207.0,0.012314]
[1741883152652,0.012313,81210.0,81181.0,1.5]
[1741883152858,0.012315,81201.0,81195.0,0.78164]
[1741883153057,0.012314,81207.0,81202.0,0.012314]
[1741883153307,0.11970099,81206.0,81202.0,0.012314]
[1741883153513,0.012314,81204.0,81199.0,0.246307]
[1741883153881,0.11970099,81206.0,81202.0,0.012314]
[1741883154260,0.3,81214.0,81209.0,0.246276]
[1741883154474,0.11970099,81213.0,81210.0,0.012313]
[1741883154715,0.11970099,81213.0,81209.0,0.012313]
[1741883154951,0.11970099,81213.0,81208.0,0.012314]
[1741883154952,0.246293,81204.0,81199.0,0.003]
[1741883155204,0.13201499,81203.0,81192.0,0.246329]
[1741883155442,0.13201499,81203.0,81196.0,0.246317]
[1741883155870,0.258613,81202.0,81196.0,0.246317]
[1741883156072,0.258621,81200.0,81195.0,0.78164]
[1741883156375,0.012315,81199.0,81195.0,0.78164]
[1741883156593,0.258632,81196.0,81195.0,0.78164]
[1741883156783,0.258645,81192.0,81191.0,0.000337]
[1741883157009,0.67834599,81192.0,81191.0,0.000337]
[1741883157453,0.6812622,81192.0,81191.0,0.000337]
[1741883158239,0.70428224,81192.0,81191.0,0.000337]
[1741883158459,0.70528224,81192.0,81191.0,0.000337]
[1741883160020,0.70628224,81192.0,81191.0,0.000337]
[1741883160499,0.70528224,81192.0,81191.0,0.000337]
[1741883160703,0.70628224,81192.0,81191.0,0.000337]
[1741883161107,0.312316,81191.0,81189.0,0.0003376]
[1741883161317,0.27320785,81185.0,81184.0,4e-07]
[1741883161555,0.69790884,81185.0,81184.0,4e-07]
[1741883161848,0.75078229,81185.0,81184.0,4e-07]
[1741883161982,0.75078229,81185.0,81160.0,0.000338]
[1741883161983,0.558741,81162.0,81160.0,0.000338]
[1741883162181,0.67844199,81162.0,81160.0,0.000338]
[1741883162436,0.68132041,81162.0,81160.0,0.000338]
[1741883163059,0.6935834,81162.0,81160.0,0.000338]
[1741883163255,0.71748371,81162.0,81160.0,0.000338]
[1741883163657,0.71648371,81162.0,81160.0,0.000338]
[1741883164063,0.71748371,81162.0,81160.0,0.000338]
[1741883164231,0.71848371,81162.0,81160.0,0.000338]
[1741883164636,0.71748371,81162.0,81160.0,0.000338]
[1741883164883,0.72208987,81162.0,81160.0,0.000338]
[1741883165093,0.72308987,81162.0,81160.0,0.000338]
[1741883167124,0.73225731,81162.0,81160.0,0.000338]
[1741883168402,0.04464788,81162.0,81161.0,0.012659]
[1741883168632,0.03238489,81162.0,81161.0,0.012659]
[1741883168865,0.02490031,81162.0,81161.0,0.012659]
[1741883169076,0.002,81162.0,81161.0,0.012659]
[1741883169286,0.002,81162.0,81161.0,0.06349096]
[1741883169504,0.002,81162.0,81161.0,0.062259]
[1741883169700,0.002,81162.0,81161.0,0.06349093]
[1741883169946,0.001,81162.0,81161.0,0.062259]
[1741883170167,0.001,81162.0,81161.0,0.06349091]
[1741883170587,0.001,81162.0,81161.0,1.56349091]
[1741883170791,0.001,81162.0,81161.0,1.68195999]
[1741883171563,0.258673,81184.0,81178.0,0.012318]
[1741883171771,0.25868,81182.0,81176.0,0.012318]
[1741883171967,0.25868,81182.0,81176.0,0.258693]
[1741883172140,0.246366,81180.0,81175.0,0.246378]
[1741883172349,0.012319,81175.0,81166.0,0.258726]
[1741883172568,0.246402,81168.0,81161.0,0.259081]
[1741883172763,0.246405,81167.0,81161.0,0.000338]
[1741883172965,0.012318,81178.0,81163.0,0.01232]
[1741883173263,0.24636,81182.0,81177.0,0.012318]
[1741883173466,0.11970099,81182.0,81181.0,0.246363]
[1741883173788,0.012318,81177.0,81172.0,0.258707]
[1741883173992,0.012318,81181.0,81174.0,0.012319]
[1741883174200,0.258708,81173.0,81166.0,0.258726]
[1741883174406,0.258708,81173.0,81149.0,0.0457]
[1741883174407,0.012319,81170.0,81162.0,0.24642]
[1741883174615,0.24642,81163.0,81161.0,0.000338]
[1741883174812,0.13324617,81162.0,81161.0,0.000338]
[1741883175016,0.13202199,81162.0,81161.0,0.000338]
[1741883175239,0.43202199,81162.0,81161.0,0.000338]
[1741883176333,0.45486626,81162.0,81161.0,0.000338]
[1741883178139,0.45686626,81162.0,81161.0,0.000338]
[1741883178550,0.45486626,81162.0,81161.0,0.000338]
[1741883178751,0.45686626,81162.0,81161.0,0.000338]
[1741883178955,0.45986626,81162.0,81161.0,0.000338]
[1741883179127,0.45786626,81162.0,81161.0,0.000338]
[1741883179786,0.46086626,81162.0,81161.0,0.000338]
[1741883180132,0.44854526,81162.0,81161.0,0.000338]
[1741883180359,0.70728626,81162.0,81161.0,0.000338]
[1741883180531,0.44854526,81162.0,81161.0,0.000338]
[1741883180726,0.46086626,81162.0,81161.0,0.000338]
[1741883181004,0.44854526,81162.0,81161.0,0.000338]
[1741883181449,0.02884427,81162.0,81161.0,0.012659]